fUST/lending_fUST_20251112
["ID","MTS","AMOUNT","RATE_DAILY","PERIOD"]
[393713631,1762942249592,-2000.0,0.00018248,2]
[393713632,1762942249601,-2000.0,0.00018353,2]
[393713633,1762942249610,-283.56904059,0.00018386,2]
[393713634,1762942249620,-864.0,0.00018419,2]
[393713635,1762942249629,-260.0,0.00018457,2]
[393713636,1762942249638,-1000.0,0.00018521,2]
[393713637,1762942249647,-506.27268725,0.00018521,2]
[393713638,1762942249656,-1000.0,0.00018521,2]
[393713639,1762942249665,-716.54853665,0.00018521,2]
[393713640,1762942249674,-240.60033428,0.00018521,2]
[393713641,1762942249683,-691.94671081,0.00018521,2]
[393713642,1762942249692,-1000.0,0.00018521,2]
[393713643,1762942249701,-1000.0,0.00018521,2]
[393713644,1762942249710,-1000.0,0.00018521,2]
[393713645,1762942249719,-1000.0,0.00018521,2]
[393713646,1762942249728,-1000.0,0.00018521,2]
[393713647,1762942249738,-1000.0,0.00018521,2]
[393713648,1762942249747,-1000.0,0.00018521,2]
[393713649,1762942249756,-1000.0,0.00018521,2]
[393713650,1762942249765,-805.41578557,0.00018521,2]
[393713651,1762942249774,-1000.0,0.00018521,2]
[393713652,1762942249782,-1000.0,0.00018521,2]
[393713653,1762942249791,-1000.0,0.00018521,2]
[393713654,1762942249800,-1000.0,0.00018521,2]
[393713655,1762942249809,-1000.0,0.00018521,2]
[393713656,1762942249818,-1000.0,0.00018521,2]
[393713657,1762942249827,-1000.0,0.00018521,2]
[393713658,1762942249837,-1000.0,0.00018521,2]
[393713659,1762942249846,-1000.0,0.00018521,2]
[393713660,1762942249856,-1000.0,0.00018521,2]
[393713661,1762942249866,-4928.8300353,0.00018671,2]
[393713662,1762942249957,-1258.00733458,0.00018675,2]
[393713663,1762942249967,-598.76325578,0.00018682,2]
[393713664,1762942249976,-4446.05810597,0.00018716,2]
[393713665,1762942249986,-3500.0,0.00018727,2]
[393713666,1762942249994,-2500.0,0.00018796,2]
[393713667,1762942250003,-2313.62361752,0.00018796,2]
[393713668,1762942250012,-453.90998057,0.000189,2]
[393713669,1762942250021,-2634.23090501,0.00018901,2]
[393713670,1762942250031,-5473.88986918,0.00018971,2]
[393713671,1762942250044,-360.0,0.00019005,2]
[393713672,1762942250056,-1500.0,0.00019068,2]
[393713673,1762942250065,-1510.97714607,0.00019068,2]
[393713674,1762942250075,-1025.80585792,0.00019068,2]
[393713675,1762942250085,-1500.0,0.00019068,2]
[393713676,1762942250094,-1500.0,0.00019068,2]
[393713677,1762942250103,-522.92159442,0.00019068,2]
[393713678,1762942250112,-455.04910008,0.00019068,2]
[393713679,1762942250121,-1500.0,0.00019068,2]
[393713680,1762942250131,-240.63927608,0.00019068,2]
[393713681,1762942250140,-1500.0,0.00019068,2]
[393713682,1762942250149,-1500.0,0.00019068,2]
[393713683,1762942250157,-1500.0,0.00019068,2]
[393713684,1762942250167,-1027.37996962,0.00019068,2]
[393713685,1762942250176,-1500.0,0.00019068,2]
[393713686,1762942250185,-411.5194586,0.00019068,2]
[393713687,1762942250194,-1500.0,0.00019068,2]
[393713688,1762942250203,-1515.18360682,0.00019068,2]
[393713689,1762942250212,-1500.0,0.00019068,2]
[393713690,1762942250221,-1500.0,0.00019068,2]
[393713691,1762942250230,-808.17285807,0.00019068,2]
[393713692,1762942250238,-343.918869,0.00019178,2]
[393713693,1762942250247,-343.918869,0.00019178,2]
[393713694,1762942250256,-343.918869,0.00019178,2]
[393713695,1762942250264,-343.918869,0.00019178,2]
[393713696,1762942250273,-343.918869,0.00019178,2]
[393713697,1762942250282,-343.918869,0.00019178,2]
[393713698,1762942250291,-343.918869,0.00019178,2]
[393713699,1762942250300,-343.918869,0.00019178,2]
[393713700,1762942250308,-343.918869,0.00019178,2]
[393713701,1762942250317,-343.918869,0.00019178,2]
[393713702,1762942250326,-343.918869,0.00019178,2]
[393713703,1762942250335,-343.918869,0.00019178,2]
[393713704,1762942250344,-343.918869,0.00019178,2]
[393713705,1762942250353,-343.918869,0.00019178,2]
[393713706,1762942250362,-343.918869,0.00019178,2]
[393713707,1762942250371,-343.918869,0.00019178,2]
[393713708,1762942250380,-343.918869,0.00019178,2]
[393713709,1762942250389,-343.918869,0.00019178,2]
[393713710,1762942250398,-343.918869,0.00019178,2]
[393713711,1762942250409,-343.918866,0.00019178,2]
[393713712,1762942250417,-823.0,0.00019189,2]
[393713713,1762942250427,-1255.0492841,0.00019192,2]
[393713714,1762942250436,-4446.05810597,0.00019197,2]
[393713715,1762942250445,-4000.0,0.00019275,2]
[393713716,1762942250453,-2000.0,0.00019344,2]
[393713717,1762942250463,-1877.0,0.0001946,2]
[393713718,1762942250472,-460.0,0.00019553,2]
[393713719,1762942250480,-1477.90879844,0.00019616,2]
[393713720,1762942250490,-2000.0,0.00019616,2]
[393713721,1762942250499,-1010.7455614,0.00019616,2]
[393713722,1762942250508,-2000.0,0.00019616,2]
[393713723,1762942250517,-500.0,0.00019616,2]
[393713724,1762942250526,-2000.0,0.00019616,2]
[393713725,1762942250535,-1000.0,0.00019616,2]
[393713726,1762942250543,-1515.16322027,0.00019616,2]
[393713727,1762942250552,-1012.19074474,0.00019616,2]
[393713728,1762942250561,-2000.0,0.00019616,2]
[393713729,1762942250570,-170.287233,0.00019635,2]
[393713730,1762942250579,-393.0,0.00019667,2]
[393713731,1762942250588,-4446.05810597,0.00019679,2]
[393713732,1762942250597,-393.0,0.00019724,2]
[393713733,1762942250606,-393.0,0.00019745,2]
[393713734,1762942250617,-393.0,0.00019749,2]
[393713735,1762942250626,-393.0,0.0001975,2]
[393713736,1762942250634,-393.0,0.00019765,2]
[393713737,1762942250643,-2655.28614126,0.00019822,2]
[393713738,1762942250652,-393.0,0.0001986,2]
[393713739,1762942250661,-393.0,0.00019902,2]
[393713740,1762942250670,-393.0,0.00019912,2]
[393713741,1762942250679,-4406.0,0.00019955,2]
[393713742,1762942250689,-413.0,0.00019991,2]
[393713743,1762942250698,-946.070093,0.0002,2]
[393713744,1762942250707,-393.0,0.00020027,2]
[393713745,1762942250715,-393.0,0.00020041,2]
[393713746,1762942250724,-1258.00733458,0.00020059,2]
[393713747,1762942250733,-393.0,0.0002009,2]
[393713748,1762942250741,-560.0,0.000201,2]
[393713749,1762942250750,-393.0,0.00020102,2]
[393713750,1762942250759,-393.0,0.00020118,2]
[393713751,1762942250768,-393.0,0.00020159,2]
[393713752,1762942250777,-4446.05810597,0.00020161,2]
[393713753,1762942250787,-2500.0,0.00020164,2]
[393713754,1762942250798,-2500.0,0.00020164,2]
[393713755,1762942250807,-2500.0,0.00020164,2]
[393713756,1762942250816,-4002.0,0.00020168,2]
[393713757,1762942250825,-552.83732,0.00020187,2]
[393713758,1762942250834,-4002.0,0.00020193,2]
[393713759,1762942250844,-393.0,0.00020227,2]
[393713760,1762942250853,-1000.0,0.00020261,2]
[393713761,1762942250863,-393.0,0.00020283,2]
[393713762,1762942250872,-4002.0,0.00020284,2]
[393713763,1762942250881,-393.0,0.00020337,2]
[393713764,1762942250890,-393.0,0.00020348,2]
[393713765,1762942250898,-500.0,0.00020348,2]
[393713766,1762942250906,-321.10023714,0.00020386,2]
[393713767,1762942250915,-500.0,0.00020393,2]
[393713768,1762942250924,-393.0,0.00020404,2]
[393713769,1762942250933,-393.0,0.00020449,2]
[393713770,1762942250942,-393.0,0.00020457,2]
[393713771,1762942250952,-500.0,0.0002051,2]
[393713772,1762942250961,-301.595202,0.00020548,2]
[393713773,1762942250970,-301.595202,0.00020548,2]
[393713774,1762942250979,-301.595202,0.00020548,2]
[393713775,1762942250988,-301.595202,0.00020548,2]
[393713776,1762942250997,-301.595202,0.00020548,2]
[393713777,1762942251006,-301.595202,0.00020548,2]
[393713778,1762942251016,-301.595202,0.00020548,2]
[393713779,1762942251025,-301.595202,0.00020548,2]
[393713780,1762942251035,-301.595202,0.00020548,2]
[393713781,1762942251045,-301.595202,0.00020548,2]
[393713782,1762942251056,-301.595202,0.00020548,2]
[393713783,1762942251065,-301.595202,0.00020548,2]
[393713784,1762942251075,-301.595202,0.00020548,2]
[393713785,1762942251084,-301.595202,0.00020548,2]
[393713786,1762942251094,-301.595202,0.00020548,2]
[393713787,1762942251103,-301.595202,0.00020548,2]
[393713788,1762942251113,-301.595202,0.00020548,2]
[393713789,1762942251125,-301.595202,0.00020548,2]
[393713790,1762942251134,-301.595202,0.00020548,2]
[393713791,1762942251143,-301.5952,0.00020548,2]
[393713792,1762942251152,-4450.50416408,0.00020643,2]
[393713793,1762942251161,-660.0,0.00020648,2]
[393713794,1762942251170,-400.18833243,0.00020697,2]
[393713795,1762942251179,-160.0,0.00020697,2]
[393713796,1762942251188,-160.0,0.0002071,2]
[393713797,1762942251197,-1500.0,0.00020712,2]
[393713798,1762942251208,-3000.0,0.00020712,2]
[393713799,1762942251217,-1000.0,0.00020896,2]
[393713800,1762942251226,-254.56698642,0.000209,2]
[393713801,1762942251234,-317.70323756,0.00020941,2]
[393713802,1762942251243,-500.0,0.00020973,2]
[393713803,1762942251252,-500.0,0.00020973,2]
[393713804,1762942251261,-500.0,0.00020973,2]
[393713805,1762942251269,-500.0,0.00020973,2]
[393713806,1762942251278,-500.0,0.00020973,2]
[393713807,1762942251287,-605.11584355,0.00020973,2]
[393713808,1762942251296,-500.0,0.00020973,2]
[393713809,1762942251304,-500.0,0.00020973,2]
[393713810,1762942251314,-500.0,0.00020973,2]
[393713811,1762942251322,-500.0,0.00020973,2]
[393713812,1762942251331,-500.0,0.00020973,2]
[393713813,1762942251341,-500.0,0.00020973,2]
[393713814,1762942251350,-500.0,0.00020973,2]
[393713815,1762942251359,-500.0,0.00020973,2]
[393713816,1762942251368,-500.0,0.00020973,2]
[393713817,1762942251377,-158.79734157,0.00020973,2]
[393713818,1762942251386,-500.0,0.00020973,2]
[393713819,1762942251396,-162.57213708,0.00020973,2]
[393713820,1762942251405,-200.0,0.00020999,2]
[393713821,1762942251414,-1377.0,0.00021,2]
[393713822,1762942251422,-205.90150049,0.00021,2]
[393713823,1762942251431,-49249.0,0.00021,2]
[393713824,1762942251440,-150.0,0.00021001,2]
[393713825,1762942251449,-150.0,0.00021001,2]
[393713826,1762942251458,-150.0,0.00021009,2]
[393713827,1762942251467,-250.0,0.00021009,2]
[393713828,1762942251476,-265.369,0.00021009,2]
[393713829,1762942251485,-213.542,0.00021009,2]
[393713830,1762942251494,-629.0,0.00021009,2]
[393713831,1762942251503,-987.0,0.00021009,2]
[393713832,1762942251512,-2168.0,0.00021009,2]
[393713833,1762942251521,-1152.0,0.0002101,2]
[393713834,1762942251530,-948.9906155,0.00021058,2]
[393713835,1762942251539,-760.0,0.00021196,2]
[393713836,1762942251548,-1639.08057231,0.0002126,2]
[393713838,1762942539384,300.0,0.00021136,120]
[393713839,1762942540630,300.0,0.00022193,120]
[393713840,1762942541972,300.0,0.00023302,120]
[393713841,1762942543214,300.0,0.00024468,120]
[393713842,1762942544581,300.0,0.00025691,120]
[393713843,1762942545732,300.0,0.00026975,120]
[393713844,1762942546988,300.0,0.00028324,120]
[393713845,1762942548459,300.0,0.0002974,120]
[393713846,1762942549725,300.0,0.00031227,120]
[393713847,1762942550975,300.0,0.00032789,120]
[393713848,1762942558985,250.0,0.00036642,120]
[393713854,1762942798417,400.89867893,0.00036626,30]
[393713862,1762943242319,3685549.96191378,0.00036626,20]
[393713901,1762943432384,-1322.260045,0.00018,2]
[393713977,1762943438401,-994.1700005,0.00018,2]
[393713979,1762943438414,-2579.25046297,0.00018,2]
[393713981,1762943438424,-872.0,0.00018,2]
[393713983,1762943438434,-494.197863,0.00019276,2]
[393713985,1762943438448,-191.64995479,0.00019306,2]
[393713987,1762943438458,-2177.68504398,0.00019666,2]
[393713988,1762943438468,-300.0,0.00019813,2]
[393713990,1762943438478,-3118.39667526,0.00019814,2]
[393714069,1762943440592,-297.54841123,0.00019814,2]
[393714071,1762943440602,-327.20158877,0.00019827,2]
[393714805,1762943446887,-1850.48345521,0.00019827,2]
[393714808,1762943446900,-238.81654479,0.00019866,2]
[393715229,1762943608878,3213.0,0.00032877,120]
[393715231,1762943767255,200.02693205,0.00032789,120]
[393715232,1762944292833,675507.01297366,0.00036664,20]
[393715286,1762944632593,-1440.7,0.00018705,2]
[393715292,1762944632647,-625.36181593,0.00018705,2]
[393715299,1762944632701,-111.62322805,0.00018705,2]
[393715301,1762944632710,-223.81610509,0.00018721,2]
[393715303,1762944632720,-912.0,0.000188,2]
[393715305,1762944632729,-200.76903659,0.000188,2]
[393715307,1762944632738,-160.0,0.00018846,2]
[393715309,1762944632748,-1000.0,0.0001887,2]
[393715311,1762944632757,-50000.0,0.00018873,2]
[393715313,1762944632767,-300.0,0.00018873,2]
[393715315,1762944632776,-300.0,0.00018873,2]
[393715317,1762944632785,-300.0,0.00018873,2]
[393715319,1762944632794,-1200.0,0.00018873,2]
[393715321,1762944632803,-300.0,0.00018873,2]
[393715323,1762944632813,-3545.65204228,0.00018874,2]
[393715324,1762944632822,-3587.25400051,0.00018885,2]
[393715327,1762944632831,-1200.0,0.0001895,2]
[393715328,1762944632842,-500.0,0.00018961,2]
[393715331,1762944632854,-545.81146804,0.00018961,2]
[393715333,1762944632863,-500.0,0.00018961,2]
[393715334,1762944632873,-500.0,0.00018961,2]
[393715337,1762944632885,-500.0,0.00018961,2]
[393715339,1762944632895,-396.50893896,0.00018961,2]
[393715409,1762944638571,-103.49106104,0.00018961,2]
[393715410,1762944638581,-583.26483709,0.00018961,2]
[393715411,1762944638592,-500.0,0.00018961,2]
[393715412,1762944638602,-345.53991742,0.00018961,2]
[393715413,1762944638612,-667.43033349,0.00018996,2]
[393715414,1762944638623,-1510.25471049,0.00018996,2]
[393715415,1762944638634,-500.0,0.00019013,2]
[393715416,1762944638644,-500.0,0.00019013,2]
[393715417,1762944638653,-500.0,0.00019013,2]
[393715418,1762944638671,-3587.25400051,0.00019047,2]
[393715419,1762944638687,-206.31321383,0.00019337,2]
[393715420,1762944638697,-2177.68504398,0.00019386,2]
[393715421,1762944638708,-1513.48582799,0.00019418,2]
[393715422,1762944638719,-500.0,0.00019418,2]
[393715450,1762944640741,-1573.76817252,0.00019418,2]
[393715452,1762944640751,-206.20309081,0.0001943,2]
[393715454,1762944640760,-327.0,0.0001953,2]
[393715456,1762944640768,-327.0,0.00019537,2]
[393715458,1762944640778,-3587.25400054,0.0001961,2]
[393715460,1762944640787,-2177.68504399,0.00019628,2]
[393715462,1762944640797,-500.0,0.00019701,2]
[393715464,1762944640807,-327.0,0.0001977,2]
[393715466,1762944640815,-327.0,0.00019813,2]
[393715469,1762944640825,-459.75073221,0.00019866,2]
[393715471,1762944640834,-327.0,0.00019914,2]
[393715473,1762944640845,-500.0,0.00019973,2]
[393715475,1762944640854,-9312.17545777,0.0001999,2]
[393715477,1762944640863,-500.0,0.00020057,2]
[393715479,1762944640872,-300.0,0.00020058,2]
[393715481,1762944640882,-300.0,0.00020058,2]
[393715482,1762944640963,-300.0,0.00020058,2]
[393715483,1762944640994,-300.0,0.00020058,2]
[393715484,1762944641003,-300.0,0.00020058,2]
[393715485,1762944641013,-300.0,0.00020058,2]
[393715486,1762944641022,-300.0,0.00020058,2]
[393715487,1762944641031,-300.0,0.00020058,2]
[393715488,1762944641041,-300.0,0.00020058,2]
[393715489,1762944641050,-300.0,0.00020058,2]
[393715490,1762944641059,-300.0,0.00020058,2]
[393715491,1762944641068,-300.0,0.00020058,2]
[393715492,1762944641078,-300.0,0.00020058,2]
[393715493,1762944641087,-300.0,0.00020058,2]
[393715494,1762944641096,-300.0,0.00020058,2]
[393715495,1762944641106,-634.21722703,0.0002008,2]
[393715496,1762944641115,-151.0,0.00020129,2]
[393715497,1762944641124,-151.0,0.00020129,2]
[393715498,1762944641134,-151.0,0.00020129,2]
[393715499,1762944641143,-500.0,0.00020129,2]
[393715500,1762944641153,-152.12052086,0.00020129,2]
[393715501,1762944641162,-152.63239838,0.00020129,2]
[393715502,1762944641172,-151.0,0.00020129,2]
[393715503,1762944641181,-151.0,0.00020129,2]
[393715504,1762944641190,-634.21722703,0.00020176,2]
[393715505,1762944641200,-500.0,0.0002018,2]
[393715506,1762944641209,-327.0,0.0002018,2]
[393715507,1762944641218,-500.0,0.00020184,2]
[393715508,1762944641227,-151.0,0.00020184,2]
[393715509,1762944641236,-152.83485392,0.00020184,2]
[393715510,1762944641246,-327.0,0.00020194,2]
[393715511,1762944641255,-500.0,0.00020235,2]
[393715512,1762944641265,-500.0,0.00020239,2]
[393715513,1762944641274,-288.13076501,0.00020239,2]
[393715514,1762944641283,-634.21722703,0.00020273,2]
[393715515,1762944641293,-500.0,0.0002029,2]
[393715516,1762944641303,-500.0,0.00020293,2]
[393715517,1762944641313,-327.0,0.00020309,2]
[393715518,1762944641322,-500.0,0.00020344,2]
[393715519,1762944641331,-527.21110654,0.00020348,2]
[393715520,1762944641341,-634.21722703,0.00020369,2]
[393715521,1762944641351,-627.02034704,0.00020399,2]
[393715522,1762944641360,-500.0,0.00020451,2]
[393715523,1762944641370,-4420.0,0.00020451,2]
[393715524,1762944641379,-987.0,0.00020451,2]
[393715525,1762944641389,-629.0,0.00020451,2]
[393715526,1762944641399,-2168.0,0.00020451,2]
[393715527,1762944641408,-150.0,0.00020451,2]
[393715528,1762944641417,-327.0,0.00020455,2]
[393715529,1762944641428,-600.0,0.00020458,2]
[393715530,1762944641438,-634.21722703,0.00020465,2]
[393715531,1762944641450,-299.0,0.00020466,2]
[393715532,1762944641460,-151.0,0.00020473,7]
[393715533,1762944641471,-327.0,0.00020502,2]
[393715534,1762944641483,-500.0,0.00020521,2]
[393715535,1762944641494,-222.75,0.00020555,10]
[393715536,1762944641504,-500.0,0.00020564,2]
[393715537,1762944641513,-490.63240023,0.00020564,2]
[393715538,1762944641523,-31908.23222256,0.00020565,2]
[393715539,1762944641536,-16640.66420366,0.00020565,2]
[393715540,1762944641547,-4609.01328906,0.00020565,2]
[393715541,1762944641558,-331.33674966,0.00020565,2]
[393715583,1762944643718,-4738.73067976,0.00020565,2]
[393715585,1762944643730,-887.15701806,0.00020565,2]
[393715587,1762944643742,-1576.13745829,0.00020565,2]
[393715589,1762944643753,-3541.3,0.00020565,2]
[393715591,1762944643764,-1688.15574756,0.00020565,2]
[393715892,1762944647026,-413.0,0.00020451,2]
[393715894,1762944647036,-711079.27263139,0.00020565,2]
[393715896,1762944647045,-151.0,0.00020565,2]
[393715898,1762944647055,-151.0,0.00020565,7]
[393715900,1762944647064,-500.0,0.00020573,2]
[393715902,1762944647074,-500.0,0.00020573,2]
[393715904,1762944647083,-500.0,0.00020573,2]
[393715906,1762944647092,-389.85619046,0.00020573,2]
[393715908,1762944647101,-500.0,0.00020573,2]
[393715910,1762944647111,-520.42836628,0.00020573,2]
[393715912,1762944647120,-500.0,0.00020573,2]
[393715914,1762944647129,-420.0,0.00020574,2]
[393715916,1762944647138,-160.0,0.00020622,2]
[393715918,1762944647148,-17298.0208921,0.00020665,2]
[393715920,1762944647157,-331.0943012,0.00020665,2]
[393715922,1762944647166,-327.0,0.00020735,2]
[393715924,1762944647175,-236.90746318,0.000208,2]
[393715926,1762944647184,-160.0,0.00020809,2]
[393715928,1762944647194,-400.18833243,0.00020809,2]
[393715930,1762944647203,-327.0,0.00020865,2]
[393715932,1762944647212,-4385.79299104,0.00020883,2]
[393715934,1762944647221,-168.0,0.00020885,2]
[393715935,1762944647231,-327.0,0.0002089,2]
[393715938,1762944647243,-327.0,0.00020922,2]
[393715940,1762944647255,-327.0,0.00020955,2]
[393715942,1762944647268,-327.0,0.00021026,2]
[393715944,1762944647283,-327.0,0.00021042,2]
[393715947,1762944647296,-327.0,0.00021047,2]
[393715949,1762944647306,-168.0,0.0002105,2]
[393715951,1762944647317,-379.80723679,0.00021121,2]
[393715953,1762944647329,-619.15661723,0.00021121,2]
[393715955,1762944647341,-327.0,0.00021152,2]
[393715958,1762944647352,-260.0,0.0002117,2]
[393715960,1762944647363,-327.0,0.00021171,2]
[393715962,1762944647375,-168.0,0.00021193,2]
[393715964,1762944647387,-327.0,0.00021238,2]
[393715966,1762944647398,-327.0,0.00021352,2]
[393715968,1762944647410,-160.0,0.00021477,2]
[393715970,1762944647421,-151.0,0.00021493,7]
[393715973,1762944647433,-12766.58310903,0.000215,2]
[393715975,1762944647445,-151.0,0.000215,7]
[393715977,1762944647455,-4492.08333695,0.00021547,2]
[393715979,1762944647467,-263.90423775,0.00021573,2]
[393715981,1762944647478,-500.0,0.00021573,2]
[393715984,1762944647490,-470.26798814,0.00021573,2]
[393715986,1762944647502,-500.0,0.00021573,2]
[393715988,1762944647513,-411.37519729,0.00021573,2]
[393715990,1762944647523,-210.5257945,0.00021592,2]
[393715992,1762944647535,-360.0,0.00021718,2]
[393715995,1762944647548,-1290.45059914,0.00021742,2]
[393715996,1762944647559,-866.68667588,0.00021867,2]
[393715999,1762944647570,-317.41763,0.0002189,2]
[393716001,1762944647582,-151.0,0.000219,3]
[393716003,1762944647592,-6106.05,0.00021917,2]
[393716005,1762944647602,-500.0,0.00021917,2]
[393716007,1762944647612,-500.0,0.00021917,2]
[393716009,1762944647623,-500.0,0.00021917,2]
[393716011,1762944647633,-500.0,0.00021917,2]
[393716013,1762944647644,-500.0,0.00021917,2]
[393716015,1762944647656,-500.0,0.00021917,2]
[393716018,1762944647668,-500.0,0.00021917,2]
[393716020,1762944647679,-500.0,0.00021917,2]
[393716022,1762944647691,-500.0,0.00021917,2]
[393716024,1762944647703,-500.0,0.00021917,2]
[393716027,1762944647715,-500.0,0.00021917,2]
[393716029,1762944647727,-500.0,0.00021917,2]
[393716031,1762944647739,-500.0,0.00021917,2]
[393716034,1762944647752,-500.0,0.00021917,2]
[393716036,1762944647762,-500.0,0.00021917,2]
[393716038,1762944647772,-500.0,0.00021917,2]
[393716040,1762944647782,-500.0,0.00021917,2]
[393716042,1762944647792,-543.74456669,0.00021917,2]
[393716044,1762944647803,-150.0,0.00021918,7]
[393716047,1762944647814,-1920.84799438,0.0002196,2]
[393716049,1762944647827,-956.64135133,0.00022,5]
[393716051,1762944647841,-7943.88,0.00022,7]
[393716053,1762944647855,-457.46,0.00022,7]
[393716055,1762944647865,-1000.0,0.00022121,2]
[393716057,1762944647875,-500.0,0.00022125,2]
[393716059,1762944647887,-500.0,0.00022125,2]
[393716062,1762944647899,-500.0,0.00022125,2]
[393716064,1762944647910,-500.0,0.00022125,2]
[393716066,1762944647924,-500.0,0.00022125,2]
[393716068,1762944647935,-500.0,0.00022171,2]
[393716070,1762944647946,-500.0,0.00022171,2]
[393716072,1762944647956,-500.0,0.00022171,2]
[393716074,1762944647966,-501.9660549,0.00022171,2]
[393716076,1762944647976,-582.69322062,0.00022192,7]
[393716078,1762944647987,-500.0,0.00022212,2]
[393716080,1762944647997,-500.0,0.00022212,2]
[393716082,1762944648008,-500.0,0.00022212,2]
[393716085,1762944648020,-329.74264923,0.00022212,2]
[393716087,1762944648031,-500.0,0.00022212,2]
[393716089,1762944648042,-500.0,0.00022212,2]
[393716091,1762944648053,-500.0,0.0002224,2]
[393716093,1762944648064,-500.0,0.0002224,2]
[393716095,1762944648075,-500.0,0.0002224,2]
[393716097,1762944648086,-500.0,0.00022255,2]
[393716099,1762944648097,-500.0,0.00022255,2]
[393716102,1762944648108,-500.0,0.00022255,2]
[393716104,1762944648119,-500.0,0.00022255,2]
[393716106,1762944648130,-500.0,0.00022255,2]
[393716108,1762944648141,-164.69928262,0.00022255,2]
[393716110,1762944648151,-500.0,0.00022255,2]
[393716112,1762944648162,-502.10728169,0.00022255,2]
[393716114,1762944648172,-500.0,0.00022255,2]
[393716117,1762944648183,-500.0,0.00022255,2]
[393716119,1762944648193,-506.46717792,0.00022255,2]
[393716121,1762944648206,-460.0,0.00022266,2]
[393716123,1762944648218,-151.0,0.00022384,3]
[393716125,1762944648231,-166.0,0.00022384,3]
[393716127,1762944648240,-158.65053712,0.00022384,3]
[393716129,1762944648251,-166.0,0.00022384,3]
[393716131,1762944648261,-151.0,0.00022384,3]
[393716133,1762944648271,-166.0,0.00022384,3]
[393716135,1762944648282,-332.0,0.00022384,3]
[393716137,1762944648293,-151.0,0.00022384,3]
[393716140,1762944648303,-166.0,0.00022384,3]
[393716142,1762944648314,-151.0,0.00022384,3]
[393716144,1762944648325,-332.0,0.00022384,3]
[393716146,1762944648335,-151.0,0.00022384,3]
[393716148,1762944648346,-151.0,0.00022384,3]
[393716150,1762944648355,-332.0,0.00022384,3]
[393716163,1762944648470,-332.0,0.00022384,3]
[393716165,1762944648487,-151.0,0.00022384,3]
[393716167,1762944648496,-332.0,0.00022384,3]
[393716169,1762944648506,-151.0,0.00022384,3]
[393716171,1762944648516,-332.0,0.00022384,3]
[393716173,1762944648525,-151.0,0.00022384,3]
[393716175,1762944648534,-347.22772241,0.00022384,3]
[393716177,1762944648543,-151.0,0.00022384,3]
[393716179,1762944648552,-151.0,0.00022384,3]
[393716181,1762944648561,-151.0,0.00022384,3]
[393716183,1762944648570,-151.0,0.00022384,3]
[393716185,1762944648579,-151.0,0.00022384,3]
[393716187,1762944648589,-151.0,0.00022384,3]
[393716188,1762944648598,-151.0,0.00022384,3]
[393716191,1762944648608,-151.0,0.00022384,3]
[393716192,1762944648617,-151.0,0.00022384,3]
[393716194,1762944648626,-151.0,0.00022384,3]
[393716196,1762944648636,-151.0,0.00022384,3]
[393716198,1762944648645,-151.0,0.00022384,3]
[393716200,1762944648654,-151.0,0.00022384,3]
[393716202,1762944648664,-151.0,0.00022384,3]
[393716204,1762944648673,-151.0,0.00022384,3]
[393716206,1762944648682,-151.0,0.00022384,3]
[393716208,1762944648691,-151.0,0.00022384,3]